[Event "36th Balaton GM 2018"]
[Site "Balatonlelle"]
[Date "2018.06.20"]
[Round "9"]
[White "Soham Das"]
[Black "Li, Bo"]
[Result "1-0"]
[ECO "B99"]
[WhiteElo "2355"]
[BlackElo "2333"]
[Annotator "NA RC"]
[PlyCount "79"]
[EventDate "2018.06.12"]
[EventType "swiss"]
[EventCountry "HUN"]
[SourceTitle "playchess.com"]
[Source "ChessBase"]
[SourceQuality "1"]
[TimeControl "40/5400+30:1800+30"]

{[%evp 14,63,30,22,32767,27,38,0,61,0,0,0,0,0,0,-20,32767,-6,32767,32767,0,0,140,205,145,195,173,202,227,202,226,189,250,234,224,235,233,252,270,32767,32767,32767,529,600,516,1119,32767,32767,855,29990,29990,875]} 1. e4 {[%emt 0:00:37]} c5 {[%emt 0:00:47]} 2. Nf3 {[%emt 0:00:28]} d6 {[%emt 0:01:07]} 3. d4 {[%emt 0:00:06]} cxd4 {[%emt 0:00:30]} 4. Nxd4 {[%emt 0:00:02]} Nf6 {[%emt 0:00:39]} 5. Nc3 {[%emt 0:00:04]} a6 {[%emt 0:00:52]} 6. Bg5 {[%emt 0:00:15]} e6 {[%emt 0:06:53]} 7. f4 {[%emt 0:00:30]} Be7 {[%emt 0:13:43]} 8. Qf3 {[%emt 0:00:33]} Qc7 {[%emt 0:05:31]} 9. O-O-O {[%emt 0:01:28]} Nbd7 {[%emt 0:06:50]} 10. Bd3 {[%emt 0:04:03]} b5 {[%emt 0:05:35]} 11. Rhe1 {[%emt 0:00:50]} Bb7 {[%emt 0:02:07]} 12. Qg3 {[%emt 0:00:39]} b4 {[%emt 0:03:48]} 13. Nd5 {[%emt 0:00:14]} exd5 {[%emt 0:03:49]} 14. exd5 {[%emt 0:01:13]} Kd8 {[%emt 0:04:05] B99: Sizilianisch (Najdorf-Variante)} 15. Nc6+ {[%emt 0:00:52]} Bxc6 16. dxc6 {[%emt 0:00:10]} Nc5 {[%emt 0:07:30]} ({Viel schlechter ist} 16... Qxc6 $6 17. Bxf6 Bxf6 18. Be4 $16) 17. Bh4 {[%emt 0:02:41] LiveBook: 49 Games} g6 {[%emt 0:10:12] [#]} (17... Rg8 $1 $11 {keeps the balance.} 18. Bxh7 Rh8 19. Qxg7 Rxh7 20. Qxf6 Rxh4 21. Qxf7 Rh8 22. Re5 {½-½ (34) Wang,H (2733)-Dominguez Perez,L (2730) Sochi 2012}) 18. Rxe7 $1 {[%emt 0:02:44]} Qxe7 {[%emt 0:03:06] [#]} 19. Re1 $1 {[%emt 0:01:13]} Ne6 {[%emt 0:01:31]} 20. f5 {[%emt 0:01:16]} Kc7 $146 {[%emt 0:12:24]} ({Vorgänger:} 20... gxf5 21. Bxf6 Qxf6 22. Qxd6+ {1-0 (44) Papadopoulos,I (2395)-Fakhiridou,E (2284) Athens 2007}) 21. fxe6 {[%emt 0:44:08]} fxe6 {[%emt 0:00:06]} 22. Bc4 {[%emt 0:01:00]} e5 {[#]} 23. Bxf6 $1 {[%emt 0:07:15]} Qxf6 {[%emt 0:02:49]} 24. Rf1 {[%emt 0:00:02]} Qd8 {[%emt 0:00:54]} 25. Rf7+ {[%emt 0:00:40]} Kxc6 {[%emt 0:01:06]} 26. Qf3+ {[%emt 0:00:54]} d5 {[%emt 0:00:46]} 27. Rf6+ {[%emt 0:04:00]} Kc7 {[%emt 0:02:26]} 28. Bxd5 {[%emt 0:03:49]} Ra7 {[%emt 0:02:03]} 29. Rf7+ {[%emt 0:19:03]} Kb8 {[%emt 0:00:19]} 30. Rxa7 {[%emt 0:00:20]} Kxa7 {[%emt 0:00:44]} 31. Qf7+ {[%emt 0:00:12]} Kb6 {[%emt 0:00:04]} 32. Qb7+ $18 {[%emt 0:00:35]} (32. Qf2+ $142 Kb5 33. c4+ bxc3 {[#]} 34. a4+ $1 {[%mdl 512]} Kxa4 35. Qc2+ Kb5 36. Qb3+ Ka5 37. Qxc3+ Kb5 38. Qc6+ Kb4 39. Qc4+ Ka5 40. Qc5+ Ka4 41. b3#) 32... Ka5 {[%emt 0:01:18]} 33. a3 {[%emt 0:02:52]} Qb6 {[%emt 0:01:58]} 34. axb4+ {[%emt 0:00:03]} Qxb4 {[%emt 0:00:10]} 35. Qc7+ {[%emt 0:00:08]} Kb5 {[%emt 0:02:20]} 36. Bc6+ {[%emt 0:01:23]} Kc5 {[%emt 0:04:30]} 37. Qe7+ {[%emt 0:00:36]} Kc4 {[%emt 0:01:02]} 38. b3+ {[%emt 0:00:26]} Kc3 {[%emt 0:00:34]} 39. Qxe5+ {[%emt 0:00:08]} Qd4 {[%emt 0:00:18]} 40. Qe1+ {[%emt 0:00:00]} 1-0